Workbook

Sheet Budget (hidden)
A1: Money Monster Theater Company
A2: 2017 Budget
G4: 2017 BUDGET
A5: Income
B6: Contributed Income
C7: Corporate Donations | G7: 0
C8: Foundation Contributions | G8: 0
C9: Gov't Contributions | G9: 0
C10: Individual Donations
D11: Board Giving | G11: 0
D12: Individual Giving | G12: 0
C13: Total Individual Donations | G13: =SUM(G11:G12) -> 0
B14: Total Contributed Income | G14: =SUM(G7:G9)+G13 -> 0
B15: Earned Income
C16: Advertising | G16: 0
C17: Interest | G17: 0
C18: Rentals | G18: 0
C19: Ticket Sales | G19: 0
C20: Workshops | G20: 0
B21: Total Earned Income | G21: =SUM(G16:G20) -> 0
A22: Total Income | G22: =G14+G21 -> 0
A24: Expenses
B25: Personnel Expenses
C26: Salaries & Benefits | G26: 0
C27: Contractors
D28: Admin Contractors
E29: Managing Director | G29: 0
E30: Admin Assistant | G30: 0
D31: Total Admin Contractors | G31: =SUM(G29:G30) -> 0
D32: Artistic Contractors
E33: Actors | G33: 0
E34: Designers | G34: 0
E35: Directors | G35: 0
E36: Playwrights | G36: 0
D37: Total Artistic Contractors | G37: =SUM(G33:G36) -> 0
D38: Program Contractors
E39: Box Office | G39: 0
E40: Stage Manager | G40: 0
E41: Tech Director | G41: 0
D42: Total Program Contractors | G42: =SUM(G39:G41) -> 0
C43: Total Contractors | G43: =SUM(G31+G37+G42) -> 0
B44: Operating Expenses
C45: Advertising & Marketing | G45: 0
C46: Catering & Hospitality | G46: 0
C47: Insurance | G47: 0
C48: Office Supplies | G48: 0
C49: Printing & Copying | G49: 0
C50: Postage & Shipping | G50: 0
C51: Rent & Utilities | G51: 0
C52: Travel | G52: 0
B53: Total Operating Expenses | G53: =SUM(G45:G52) -> 0
B54: Program Expenses
C55: Costumes | G55: 0
C56: Program Supplies & Materials | G56: 0
C57: Space & Theatre Rental | G57: 0
B58: Total Program Expenses | G58: =SUM(G55:G57) -> 0
A59: Total Expenses | G59: =SUM(G43+G53+G58) -> 0
A60: NET FOR YEAR | G60: =G22-G59 -> 0

Sheet One-Column Budget
A1: Budget Template: One-Column or Operating Budget
F3: TOTAL BUDGET
A4: Income
B5: Earned Income
C6: Advertising Revenue | F6: 0
C7: Concessions
D8: Concessions Revenue | F8: 0
D9: Concessions Expense | F9: 0
C10: Total Concessions (Net) | F10: =SUM(F8:F9) -> 0
C11: Interest & Dividends | F11: 0
C12: Merchandise Sales | F12: 0
C13: Ticket Sales | F13: 0
C14: Teaching & Education Income | F14: 0
C15: Other Earned Income | F15: 0
B16: Total Earned Income | F16: =F6+SUM(F10:F15) -> 0
B17: Contributed Income
C18: Corporate Donations | F18: 0
C19: Foundation Contributions
A20: Optional | D20: Foundation Unrestricted | F20: 0
A21: Optional | D21: Foundation Released From Restriction | F21: 0
C22: Total Foundation Contributions | F22: =SUM(F20:F21) -> 0
C23: Gov't Contributions
A24: Optional | D24: Local Gov't | F24: 0
A25: Optional | D25: State Gov't | F25: 0
A26: Optional | D26: Federal Gov't | F26: 0
A27: Optional | D27: Gov't Released From Restriction | F27: 0
C28: Total Gov't Contributions | F28: =SUM(F24:F27) -> 0
C29: Individual Donations
D30: Board Giving | F30: 0
A31: Optional | D31: Donor-Advised Funds & Workplace Giving | F31: 0
D32: Individual Giving | F32: 0
C33: Total Individual Donations | F33: =SUM(F30:F32) -> 0
C34: In-Kind Donations
A35: Optional | C35: Fundraising Events
A36: Optional | D36: Gala Donations | F36: 0
A37: Optional | D37: Gala Tickets | F37: 0
A38: Optional | D38: Gala Expenses | F38: 0
A39: Optional | C39: Total Fundraising Events (Net) | F39: =SUM(F36:F38) -> 0
B40: Total Contributed Income | F40: =F18+F22+F28+F33+F34+F39 -> 0
A41: Total Income | F41: =F40+F16 -> 0
A42: Expenses
B43: Personnel Expenses
C44: Salaries & Benefits
D45: Salaries
E46: Executive Director | F46: 0
E47: Artistic Director | F47: 0
E48: Other Salaries | F48: 0
D49: Total Salaries | F49: =SUM(F46:F48) -> 0
D50: Benefits
E51: Employer Payroll Taxes | F51: 0
E52: Workers Comp | F52: 0
D53: Total Benefits | F53: =SUM(F51:F52) -> 0
C54: Total Salaries & Benefits | F54: =F49+F53 -> 0
C55: Contractors
D56: Admin Contractors
E57: Bookkeeping & Accounting | F57: 0
E58: Grantwriter | F58: 0
E59: Legal | F59: 0
E60: Professional Development Consultants | F60: 0
E61: Other Admin Contractors | F61: 0
D62: Total Admin Contractors | F62: =SUM(F57:F61) -> 0
D63: Artistic Contractors
E64: Actors
E65: Composers | F65: 0
E66: Designers | F66: 0
E67: Directors | F67: 0
E68: Musicians | F68: 0
E69: Photo & Video | F69: 0
E70: Other Artistic Contractors | F70: 0
D71: Total Artistic Contractors | F71: =SUM(F64:F70) -> 0
D72: Program Contractors
E73: Crew | F73: 0
E74: Production & Stage Management | F74: 0
E75: Tech | F75: 0
E76: Other Program Contractors | F76: 0
D77: Total Program Contractors | F77: =SUM(F73:F76) -> 0
C78: Total Contractors | F78: =F62+F71+F77 -> 0
B79: Total Personnel Expenses | F79: =F54+F78 -> 0
B80: Marketing Expenses
C81: Advertising Expenses | F81: 0
C82: Graphic & Web Design | F82: 0
C83: Marketing Printing & Copying | F83: 0
C84: Online Marketing & Website | F84: 0
C85: Publicist & PR | F85: 0
B86: Total Marketing Expenses | F86: =SUM(F81:F85) -> 0
B87: General & Adminstrative Expenses
C88: Catering & Hospitality | F88: 0
C89: Conferences & Professional Development | F89: 0
C90: Dues & Memberships | F90: 0
C91: Insurance | F91: 0
C92: Licenses, Fees & Taxes | F92: 0
C93: Occupancy, Rent & Utilities | F93: 0
C94: Office Supplies & Software | F94: 0
C95: Payroll Fees | F95: 0
C96: Postage, Printing & Shipping | F96: 0
C97: Printing & Copying | F97: 0
C98: Staff Travel | F98: 0
C99: Telephone & Internet | F99: 0
C100: Other Operating Expenses | F100: 0
B101: Total General & Adminstrative Expenses | F101: =SUM(F88:F100) -> 0
B102: Program Expenses
C103: Costumes | F103: 0
C104: Program Catering & Hospitality | F104: 0
C105: Program Postage, Printing & Shipping | F105: 0
C106: Program Printing & Copying | F106: 0
C107: Program Supplies & Equipment | F107: 0
C108: Program Travel | F108: 0
C109: Prop & Set Expenses | F109: 0
C110: Venue Rental | F110: 0
C111: Other Program Expenses | F111: 0
B112: Total Program Expenses | F112: =SUM(F103:F111) -> 0
A113: Total Expenses | F113: =SUM(F79+F101+F86+F112) -> 0
A114: NET FOR YEAR | F114: =F41-F113 -> 0

Sheet Scenario Budget Template
A1: Budget Template: "Three Bears" or Scenario Budget
F3: Too Hot | G3: Too Cold | H3: Just Right
F4: BEST CASE SCENARIO | G4: WORST CASE SCENARIO | H4: PLAUSIBLE SCENARIO
A5: Income
B6: Earned Income
C7: Advertising Revenue | F7: 0 | G7: 0 | H7: 0
C8: Concessions
D9: Concessions Revenue | F9: 0 | G9: 0 | H9: 0
D10: Concessions Expense | F10: 0 | G10: 0 | H10: 0
C11: Total Concessions (Net) | F11: =SUM(F9:F10) -> 0 | G11: =SUM(G9:G10) -> 0 | H11: =SUM(H9:H10) -> 0
C12: Interest & Dividends | F12: 0 | G12: 0 | H12: 0
C13: Merchandise Sales | F13: 0 | G13: 0 | H13: 0
C14: Ticket Sales | F14: 0 | G14: 0 | H14: 0
C15: Teaching & Education Income | F15: 0 | G15: 0 | H15: 0
C16: Other Earned Income | F16: 0 | G16: 0 | H16: 0
B17: Total Earned Income | F17: =F7+SUM(F11:F16) -> 0 | G17: =G7+SUM(G11:G16) -> 0 | H17: =H7+SUM(H11:H16) -> 0
B18: Contributed Income
C19: Corporate Donations | F19: 0 | G19: 0 | H19: 0
C20: Foundation Contributions
D21: Foundation Unrestricted | F21: 0 | G21: 0 | H21: 0
D22: Foundation Released From Restriction | F22: 0 | G22: 0 | H22: 0
C23: Total Foundation Contributions | F23: =SUM(F21:F22) -> 0 | G23: =SUM(G21:G22) -> 0 | H23: =SUM(H21:H22) -> 0
C24: Gov't Contributions
D25: Local Gov't | F25: 0 | G25: 0 | H25: 0
D26: State Gov't | F26: 0 | G26: 0 | H26: 0
D27: Federal Gov't | F27: 0 | G27: 0 | H27: 0
D28: Gov't Released From Restriction | F28: 0 | G28: 0 | H28: 0
C29: Total Gov't Contributions | F29: =SUM(F25:F28) -> 0 | G29: =SUM(G25:G28) -> 0 | H29: =SUM(H25:H28) -> 0
C30: Individual Donations
D31: Board Giving | F31: 0 | G31: 0 | H31: 0
D32: Donor-Advised Funds & Workplace Giving | F32: 0 | G32: 0 | H32: 0
D33: Individual Giving | F33: 0 | G33: 0 | H33: 0
C34: Total Individual Donations | F34: =SUM(F31:F33) -> 0 | G34: =SUM(G31:G33) -> 0 | H34: =SUM(H31:H33) -> 0
C35: In-Kind Donations
C36: Fundraising Events
D37: Gala Donations | F37: 0 | G37: 0 | H37: 0
D38: Gala Tickets | F38: 0 | G38: 0 | H38: 0
D39: Gala Expenses | F39: 0 | G39: 0 | H39: 0
C40: Total Fundraising Events (Net) | F40: =SUM(F37:F39) -> 0 | G40: =SUM(G37:G39) -> 0 | H40: =SUM(H37:H39) -> 0
B41: Total Contributed Income | F41: =F19+F23+F29+F34+F35+F40 -> 0 | G41: =G19+G23+G29+G34+G35+G40 -> 0 | H41: =H19+H23+H29+H34+H35+H40 -> 0
A42: Total Income | F42: =F41+F17 -> 0 | G42: =G41+G17 -> 0 | H42: =H41+H17 -> 0
A43: Expenses
B44: Personnel Expenses
C45: Salaries & Benefits
D46: Salaries
E47: Executive Director | F47: 0 | G47: 0 | H47: 0
E48: Artistic Director | F48: 0 | G48: 0 | H48: 0
E49: Other Salaries | F49: 0 | G49: 0 | H49: 0
D50: Total Salaries | F50: =SUM(F47:F49) -> 0 | G50: =SUM(G47:G49) -> 0 | H50: =SUM(H47:H49) -> 0
D51: Benefits
E52: Employer Payroll Taxes | F52: 0 | G52: 0 | H52: 0
E53: Workers Comp | F53: 0 | G53: 0 | H53: 0
D54: Total Benefits | F54: =SUM(F52:F53) -> 0 | G54: =SUM(G52:G53) -> 0 | H54: =SUM(H52:H53) -> 0
C55: Total Salaries & Benefits | F55: =F50+F54 -> 0 | G55: =G50+G54 -> 0 | H55: =H50+H54 -> 0
C56: Contractors
D57: Admin Contractors
E58: Bookkeeping & Accounting | F58: 0 | G58: 0 | H58: 0
E59: Grantwriter | F59: 0 | G59: 0 | H59: 0
E60: Legal | F60: 0 | G60: 0 | H60: 0
E61: Professional Development Consultants | F61: 0 | G61: 0 | H61: 0
E62: Other Admin Contractors | F62: 0 | G62: 0 | H62: 0
D63: Total Admin Contractors | F63: =SUM(F58:F62) -> 0 | G63: =SUM(G58:G62) -> 0 | H63: =SUM(H58:H62) -> 0
D64: Artistic Contractors
E65: Actors
E66: Composers | F66: 0 | G66: 0 | H66: 0
E67: Designers | F67: 0 | G67: 0 | H67: 0
E68: Directors | F68: 0 | G68: 0 | H68: 0
E69: Musicians | F69: 0 | G69: 0 | H69: 0
E70: Photo & Video | F70: 0 | G70: 0 | H70: 0
E71: Other Artistic Contractors | F71: 0 | G71: 0 | H71: 0
D72: Total Artistic Contractors | F72: =SUM(F65:F71) -> 0 | G72: =SUM(G65:G71) -> 0 | H72: =SUM(H65:H71) -> 0
D73: Program Contractors
E74: Crew | F74: 0 | G74: 0 | H74: 0
E75: Production & Stage Management | F75: 0 | G75: 0 | H75: 0
E76: Tech | F76: 0 | G76: 0 | H76: 0
E77: Other Program Contractors | F77: 0 | G77: 0 | H77: 0
D78: Total Program Contractors | F78: =SUM(F74:F77) -> 0 | G78: =SUM(G74:G77) -> 0 | H78: =SUM(H74:H77) -> 0
C79: Total Contractors | F79: =F63+F72+F78 -> 0 | G79: =G63+G72+G78 -> 0 | H79: =H63+H72+H78 -> 0
B80: Total Personnel Expenses | F80: =F55+F79 -> 0 | G80: =G55+G79 -> 0 | H80: =H55+H79 -> 0
B81: Marketing Expenses
C82: Advertising Expenses | F82: 0 | G82: 0 | H82: 0
C83: Graphic & Web Design | F83: 0 | G83: 0 | H83: 0
C84: Marketing Printing & Copying | F84: 0 | G84: 0 | H84: 0
C85: Online Marketing & Website | F85: 0 | G85: 0 | H85: 0
C86: Publicist & PR | F86: 0 | G86: 0 | H86: 0
B87: Total Marketing Expenses | F87: =SUM(F82:F86) -> 0 | G87: =SUM(G82:G86) -> 0 | H87: =SUM(H82:H86) -> 0
B88: General & Adminstrative Expenses
C89: Catering & Hospitality | F89: 0 | G89: 0 | H89: 0
C90: Conferences & Professional Development | F90: 0 | G90: 0 | H90: 0
C91: Dues & Memberships | F91: 0 | G91: 0 | H91: 0
C92: Insurance | F92: 0 | G92: 0 | H92: 0
C93: Licenses, Fees & Taxes | F93: 0 | G93: 0 | H93: 0
C94: Occupancy, Rent & Utilities | F94: 0 | G94: 0 | H94: 0
C95: Office Supplies & Software | F95: 0 | G95: 0 | H95: 0
C96: Payroll Fees | F96: 0 | G96: 0 | H96: 0
C97: Postage, Printing & Shipping | F97: 0 | G97: 0 | H97: 0
C98: Printing & Copying | F98: 0 | G98: 0 | H98: 0
C99: Staff Travel | F99: 0 | G99: 0 | H99: 0
C100: Telephone & Internet | F100: 0 | G100: 0 | H100: 0
C101: Other Operating Expenses | F101: 0 | G101: 0 | H101: 0
B102: Total General & Adminstrative Expenses | F102: =SUM(F89:F101) -> 0 | G102: =SUM(G89:G101) -> 0 | H102: =SUM(H89:H101) -> 0
B103: Program Expenses
C104: Costumes | F104: 0 | G104: 0 | H104: 0
C105: Program Catering & Hospitality | F105: 0 | G105: 0 | H105: 0
C106: Program Postage, Printing & Shipping | F106: 0 | G106: 0 | H106: 0
C107: Program Printing & Copying | F107: 0 | G107: 0 | H107: 0
C108: Program Supplies & Equipment | F108: 0 | G108: 0 | H108: 0
C109: Program Travel | F109: 0 | G109: 0 | H109: 0
C110: Prop & Set Expenses | F110: 0 | G110: 0 | H110: 0
C111: Venue Rental | F111: 0 | G111: 0 | H111: 0
C112: Other Program Expenses | F112: 0 | G112: 0 | H112: 0
B113: Total Program Expenses | F113: =SUM(F104:F112) -> 0 | G113: =SUM(G104:G112) -> 0 | H113: =SUM(H104:H112) -> 0
A114: Total Expenses | F114: =SUM(F80+F102+F87+F113) -> 0 | G114: =SUM(G80+G102+G87+G113) -> 0 | H114: =SUM(H80+H102+H87+H113) -> 0
A115: NET FOR YEAR | F115: =F42-F114 -> 0 | G115: =G42-G114 -> 0 | H115: =H42-H114 -> 0

Sheet Budget By Program Template
A1: Budget Template: Budget by Program
F3: G&A | G3: Fundraising | H3: Program | I3: TOTAL BUDGET
A4: Income
B5: Earned Income
C6: Advertising Revenue | F6: 0 | G6: 0 | H6: 0 | I6: =SUM(F6:H6) -> 0
C7: Concessions
D8: Concessions Revenue | F8: 0 | G8: 0 | H8: 0 | I8: =SUM(F8:H8) -> 0
D9: Concessions Expense | F9: 0 | G9: 0 | H9: 0 | I9: =SUM(F9:H9) -> 0
C10: Total Concessions (Net) | F10: =SUM(F8:F9) -> 0 | G10: =SUM(G8:G9) -> 0 | H10: =SUM(H8:H9) -> 0 | I10: =SUM(F10:H10) -> 0
C11: Interest & Dividends | F11: 0 | G11: 0 | H11: 0 | I11: =SUM(F11:H11) -> 0
C12: Merchandise Sales | F12: 0 | G12: 0 | H12: 0 | I12: =SUM(F12:H12) -> 0
C13: Ticket Sales | F13: 0 | G13: 0 | H13: 0 | I13: =SUM(F13:H13) -> 0
C14: Teaching & Education Income | F14: 0 | G14: 0 | H14: 0 | I14: =SUM(F14:H14) -> 0
C15: Other Earned Income | F15: 0 | G15: 0 | H15: 0 | I15: =SUM(F15:H15) -> 0
B16: Total Earned Income | F16: =F6+SUM(F10:F15) -> 0 | G16: =G6+SUM(G10:G15) -> 0 | H16: =H6+SUM(H10:H15) -> 0 | I16: =SUM(F16:H16) -> 0
B17: Contributed Income
C18: Corporate Donations | F18: 0 | G18: 0 | H18: 0 | I18: =SUM(F18:H18) -> 0
C19: Foundation Contributions
D20: Foundation Unrestricted | F20: 0 | G20: 0 | H20: 0 | I20: =SUM(F20:H20) -> 0
D21: Foundation Released From Restriction | F21: 0 | G21: 0 | H21: 0 | I21: 0
C22: Total Foundation Contributions | F22: =SUM(F20:F21) -> 0 | G22: =SUM(G20:G21) -> 0 | H22: =SUM(H20:H21) -> 0 | I22: 0
C23: Gov't Contributions
D24: Local Gov't | F24: 0 | G24: 0 | H24: 0 | I24: 0
D25: State Gov't | F25: 0 | G25: 0 | H25: 0 | I25: 0
D26: Federal Gov't | F26: 0 | G26: 0 | H26: 0 | I26: 0
D27: Gov't Released From Restriction | F27: 0 | G27: 0 | H27: 0 | I27: 0
C28: Total Gov't Contributions | F28: =SUM(F24:F27) -> 0 | G28: =SUM(G24:G27) -> 0 | H28: =SUM(H24:H27) -> 0 | I28: 0
C29: Individual Donations
D30: Board Giving | F30: 0 | G30: 0 | H30: 0 | I30: 0
D31: Donor-Advised Funds & Workplace Giving | F31: 0 | G31: 0 | H31: 0 | I31: 0
D32: Individual Giving | F32: 0 | G32: 0 | H32: 0 | I32: 0
C33: Total Individual Donations | F33: =SUM(F30:F32) -> 0 | G33: =SUM(G30:G32) -> 0 | H33: =SUM(H30:H32) -> 0 | I33: 0
C34: In-Kind Donations
C35: Fundraising Events
D36: Gala Donations | F36: 0 | G36: 0 | H36: 0 | I36: 0
D37: Gala Tickets | F37: 0 | G37: 0 | H37: 0 | I37: 0
D38: Gala Expenses | F38: 0 | G38: 0 | H38: 0 | I38: 0
C39: Total Fundraising Events (Net) | F39: =SUM(F36:F38) -> 0 | G39: =SUM(G36:G38) -> 0 | H39: =SUM(H36:H38) -> 0 | I39: 0
B40: Total Contributed Income | F40: =F18+F22+F28+F33+F34+F39 -> 0 | G40: =G18+G22+G28+G33+G34+G39 -> 0 | H40: =H18+H22+H28+H33+H34+H39 -> 0 | I40: 0
A41: Total Income | F41: =F40+F16 -> 0 | G41: =G40+G16 -> 0 | H41: =H40+H16 -> 0 | I41: 0
A42: Expenses
B43: Personnel Expenses
C44: Salaries & Benefits
D45: Salaries
E46: Executive Director | F46: 0 | G46: 0 | H46: 0 | I46: 0
E47: Artistic Director | F47: 0 | G47: 0 | H47: 0 | I47: 0
E48: Other Salaries | F48: 0 | G48: 0 | H48: 0 | I48: 0
D49: Total Salaries | F49: =SUM(F46:F48) -> 0 | G49: =SUM(G46:G48) -> 0 | H49: =SUM(H46:H48) -> 0 | I49: 0
D50: Benefits
E51: Employer Payroll Taxes | F51: 0 | G51: 0 | H51: 0 | I51: 0
E52: Workers Comp | F52: 0 | G52: 0 | H52: 0 | I52: 0
D53: Total Benefits | F53: =SUM(F51:F52) -> 0 | G53: =SUM(G51:G52) -> 0 | H53: =SUM(H51:H52) -> 0 | I53: 0
C54: Total Salaries & Benefits | F54: =F49+F53 -> 0 | G54: =G49+G53 -> 0 | H54: =H49+H53 -> 0 | I54: 0
C55: Contractors
D56: Admin Contractors
E57: Bookkeeping & Accounting | F57: 0 | G57: 0 | H57: 0 | I57: 0
E58: Grantwriter | F58: 0 | G58: 0 | H58: 0 | I58: 0
E59: Legal | F59: 0 | G59: 0 | H59: 0 | I59: 0
E60: Professional Development Consultants | F60: 0 | G60: 0 | H60: 0 | I60: 0
E61: Other Admin Contractors | F61: 0 | G61: 0 | H61: 0 | I61: 0
D62: Total Admin Contractors | F62: =SUM(F57:F61) -> 0 | G62: =SUM(G57:G61) -> 0 | H62: =SUM(H57:H61) -> 0 | I62: 0
D63: Artistic Contractors
E64: Actors | I64: 0
E65: Composers | F65: 0 | G65: 0 | H65: 0 | I65: 0
E66: Designers | F66: 0 | G66: 0 | H66: 0 | I66: 0
E67: Directors | F67: 0 | G67: 0 | H67: 0 | I67: 0
E68: Musicians | F68: 0 | G68: 0 | H68: 0 | I68: 0
E69: Photo & Video | F69: 0 | G69: 0 | H69: 0 | I69: 0
E70: Other Artistic Contractors | F70: 0 | G70: 0 | H70: 0 | I70: 0
D71: Total Artistic Contractors | F71: =SUM(F64:F70) -> 0 | G71: =SUM(G64:G70) -> 0 | H71: =SUM(H64:H70) -> 0 | I71: =SUM(F71:H71) -> 0
D72: Program Contractors
E73: Crew | F73: 0 | G73: 0 | H73: 0 | I73: 0
E74: Production & Stage Management | F74: 0 | G74: 0 | H74: 0 | I74: 0
E75: Tech | F75: 0 | G75: 0 | H75: 0 | I75: 0
E76: Other Program Contractors | F76: 0 | G76: 0 | H76: 0 | I76: 0
D77: Total Program Contractors | F77: =SUM(F73:F76) -> 0 | G77: =SUM(G73:G76) -> 0 | H77: =SUM(H73:H76) -> 0 | I77: 0
C78: Total Contractors | F78: =F62+F71+F77 -> 0 | G78: =G62+G71+G77 -> 0 | H78: =H62+H71+H77 -> 0 | I78: 0
B79: Total Personnel Expenses | F79: =F54+F78 -> 0 | G79: =G54+G78 -> 0 | H79: =H54+H78 -> 0 | I79: 0
B80: Marketing Expenses
C81: Advertising Expenses | F81: 0 | G81: 0 | H81: 0 | I81: 0
C82: Graphic & Web Design | F82: 0 | G82: 0 | H82: 0 | I82: 0
C83: Marketing Printing & Copying | F83: 0 | G83: 0 | H83: 0 | I83: 0
C84: Online Marketing & Website | F84: 0 | G84: 0 | H84: 0 | I84: 0
C85: Publicist & PR | F85: 0 | G85: 0 | H85: 0 | I85: 0
B86: Total Marketing Expenses | F86: =SUM(F81:F85) -> 0 | G86: =SUM(G81:G85) -> 0 | H86: =SUM(H81:H85) -> 0 | I86: 0
B87: General & Adminstrative Expenses
C88: Catering & Hospitality | F88: 0 | G88: 0 | H88: 0 | I88: 0
C89: Conferences & Professional Development | F89: 0 | G89: 0 | H89: 0 | I89: 0
C90: Dues & Memberships | F90: 0 | G90: 0 | H90: 0 | I90: 0
C91: Insurance | F91: 0 | G91: 0 | H91: 0 | I91: 0
C92: Licenses, Fees & Taxes | F92: 0 | G92: 0 | H92: 0 | I92: 0
C93: Occupancy, Rent & Utilities | F93: 0 | G93: 0 | H93: 0 | I93: 0
C94: Office Supplies & Software | F94: 0 | G94: 0 | H94: 0 | I94: 0
C95: Payroll Fees | F95: 0 | G95: 0 | H95: 0 | I95: 0
C96: Postage, Printing & Shipping | F96: 0 | G96: 0 | H96: 0 | I96: 0
C97: Printing & Copying | F97: 0 | G97: 0 | H97: 0 | I97: 0
C98: Staff Travel | F98: 0 | G98: 0 | H98: 0 | I98: 0
C99: Telephone & Internet | F99: 0 | G99: 0 | H99: 0 | I99: 0
C100: Other Operating Expenses | F100: 0 | G100: 0 | H100: 0 | I100: 0
B101: Total General & Adminstrative Expenses | F101: =SUM(F88:F100) -> 0 | G101: =SUM(G88:G100) -> 0 | H101: =SUM(H88:H100) -> 0 | I101: 0
B102: Program Expenses
C103: Costumes | F103: 0 | G103: 0 | H103: 0 | I103: 0
C104: Program Catering & Hospitality | F104: 0 | G104: 0 | H104: 0 | I104: 0
C105: Program Postage, Printing & Shipping | F105: 0 | G105: 0 | H105: 0 | I105: 0
C106: Program Printing & Copying | F106: 0 | G106: 0 | H106: 0 | I106: 0
C107: Program Supplies & Equipment | F107: 0 | G107: 0 | H107: 0 | I107: 0
C108: Program Travel | F108: 0 | G108: 0 | H108: 0 | I108: 0
C109: Prop & Set Expenses | F109: 0 | G109: 0 | H109: 0 | I109: 0
C110: Venue Rental | F110: 0 | G110: 0 | H110: 0 | I110: 0
C111: Other Program Expenses | F111: 0 | G111: 0 | H111: 0 | I111: 0
B112: Total Program Expenses | F112: =SUM(F103:F111) -> 0 | G112: =SUM(G103:G111) -> 0 | H112: =SUM(H103:H111) -> 0 | I112: 0
A113: Total Expenses | F113: =SUM(F79+F101+F86+F112) -> 0 | G113: =SUM(G79+G101+G86+G112) -> 0 | H113: =SUM(H79+H101+H86+H112) -> 0 | I113: 0
A114: NET FOR YEAR | F114: =F41-F113 -> 0 | G114: =G41-G113 -> 0 | H114: =H41-H113 -> 0 | I114: 0

Sheet Cashflow (hidden)
A1: Money Monster Theater Company
A2: 2017 Sample Cashflow
A4: Cash in Bank Account at 1/1/16: $10,025
G5: Q1 | H5: Q2 | I5: Q3 | J5: Q4 | K5: TOTAL
A6: Income | F6: Starting Cash | G6: 10025 | H6: =G61 -> 9169 | I6: =H61 -> 7088 | J6: =I61 -> 10122
B7: Contributed Income
C8: Corporate Donations | G8: 0 | H8: 250 | I8: 250 | J8: 0 | K8: =SUM(G8:J8) -> 500
C9: Foundation Contributions | G9: 0 | H9: 5000 | I9: 0 | J9: 5000 | K9: 10000
C10: Gov't Contributions | G10: 2500 | H10: 0 | I10: 0 | J10: 0 | K10: 2500
C11: Individual Donations
D12: Board Giving | G12: =1500/4 -> 375 | H12: =1500/4 -> 375 | I12: =1500/4 -> 375 | J12: =1500/4 -> 375 | K12: =SUM(G12:J12) -> 1500
D13: Individual Giving | G13: 500 | H13: 3000 | I13: 4000 | J13: 500 | K13: 8000
C14: Total Individual Donations | G14: =SUM(G12:G13) -> 875 | H14: 3375 | I14: 4375 | J14: 875 | K14: 9500
B15: Total Contributed Income | G15: =SUM(G8:G10)+G14 -> 3375 | H15: 8625 | I15: 4625 | J15: 5875 | K15: 22500
B16: Earned Income
C17: Advertising | G17: 0 | H17: 250 | I17: 250 | J17: 0 | K17: =SUM(G17:J17) -> 500
C18: Interest | G18: 4 | H18: 4 | I18: 4 | J18: 3 | K18: 15
C19: Rentals | G19: 700 | H19: 700 | I19: 700 | J19: 700 | K19: 2800
C20: Ticket Sales | G20: 0 | H20: 1000 | I20: 7000 | J20: 0 | K20: 8000
C21: Workshops | G21: 1250 | H21: 1250 | I21: 1250 | J21: 1250 | K21: 5000
B22: Total Earned Income | G22: =SUM(G17:G21) -> 1954 | H22: 3204 | I22: 9204 | J22: 1953 | K22: 16315
A23: Total Income | G23: =G15+G22 -> 5329 | H23: 11829 | I23: 13829 | J23: 7828 | K23: 38815
A25: Expenses
B26: Personnel Expenses
C27: Salaries & Benefits | G27: 0 | H27: 0 | I27: 0 | J27: 0 | K27: =SUM(G27:J27) -> 0
C28: Contractors
D29: Admin Contractors
E30: Managing Director | G30: =6000/4 -> 1500 | H30: =6000/4 -> 1500 | I30: =6000/4 -> 1500 | J30: =6000/4 -> 1500 | K30: =SUM(G30:J30) -> 6000
E31: Admin Assistant | G31: 600 | H31: 600 | I31: 600 | J31: 600 | K31: 2400
D32: Total Admin Contractors | G32: =SUM(G30:G31) -> 2100 | H32: 2100 | I32: 2100 | J32: 2100 | K32: 8400
D33: Artistic Contractors
E34: Actors | G34: 0 | H34: 1200 | I34: 1600 | J34: 0 | K34: =SUM(G34:J34) -> 2800
E35: Designers | G35: 0 | H35: 200 | I35: 800 | J35: 0 | K35: 1000
E36: Directors | G36: 0 | H36: 500 | I36: 1000 | J36: 0 | K36: 1500
E37: Playwrights | G37: 500 | H37: 500 | I37: 0 | J37: 0 | K37: 1000
D38: Total Artistic Contractors | G38: =SUM(G34:G37) -> 500 | H38: 2400 | I38: 3400 | J38: 0 | K38: 6300
D39: Program Contractors
E40: Box Office | G40: 0 | H40: 0 | I40: 250 | J40: 0 | K40: =SUM(G40:J40) -> 250
E41: Stage Manager | G41: 0 | H41: 0 | I41: 250 | J41: 0 | K41: 250
E42: Tech Director | G42: 0 | H42: 450 | I42: 450 | J42: 0 | K42: 900
D43: Total Program Contractors | G43: =SUM(G40:G42) -> 0 | H43: 450 | I43: 950 | J43: 0 | K43: 1400
C44: Total Contractors | G44: =SUM(G32+G38+G43) -> 2600 | H44: 4950 | I44: 6450 | J44: 2100 | K44: 16100
B45: Operating Expenses
C46: Advertising & Marketing | G46: 500 | H46: 2000 | I46: 1000 | J46: 0 | K46: =SUM(G46:J46) -> 3500
C47: Catering & Hospitality | G47: 100 | H47: 150 | I47: 200 | J47: 50 | K47: 500
C48: Insurance | G48: 300 | H48: 300 | I48: 300 | J48: 300 | K48: 1200
C49: Office Supplies | G49: 160 | H49: 160 | I49: 170 | J49: 160 | K49: 650
C50: Printing & Copying | G50: 150 | H50: 250 | I50: 450 | J50: 50 | K50: 900
C51: Postage & Shipping | G51: 50 | H51: 150 | I51: 50 | J51: 50 | K51: 300
C52: Rent & Utilities | G52: 1200 | H52: 1200 | I52: 1200 | J52: 1200 | K52: 4800
C53: Travel | G53: 25 | H53: 50 | I53: 75 | J53: 50 | K53: 200
B54: Total Operating Expenses | G54: =SUM(G46:G53) -> 2485 | H54: 4260 | I54: 3445 | J54: 1860 | K54: 12050
B55: Program Expenses
C56: Costumes | G56: 0 | H56: 300 | I56: 400 | J56: 0 | K56: =SUM(G56:J56) -> 700
C57: Program Supplies & Materials | G57: 100 | H57: 400 | I57: 500 | J57: 0 | K57: 1000
C58: Space & Theatre Rental | G58: 1000 | H58: 4000 | I58: 0 | J58: 0 | K58: 5000
B59: Total Program Expenses | G59: =SUM(G56:G58) -> 1100 | H59: 4700 | I59: 900 | J59: 0 | K59: 6700
A60: Total Expenses | G60: =SUM(G44+G54+G59) -> 6185 | H60: 13910 | I60: 10795 | J60: 3960 | K60: 34850
A61: Running Balance | G61: =G6+G23-G60 -> 9169 | H61: =H6+H23-H60 -> 7088 | I61: =I6+I23-I60 -> 10122 | J61: =J6+J23-J60 -> 13990 | K61: =K6+K23-K60 -> 3965
J62: Ending Cash Balance at 12/31/17
